[Event "*** Titled Tuesday Blitz"]
[Site "Chess.com"]
[Date "2021.03.09"]
[Round "1"]
[White "c_r_e_e_p_e_r"]
[Black "Yaacovn"]
[Result "0-1"]
[WhiteElo "2411"]
[BlackElo "2774"]
[TimeControl "180+1"]
[EndTime "10:07:37 PST"]
[Termination "Yaacovn won by checkmate"]

1. e4 {[%clk 0:03:00.9]} 1... c6 {[%clk 0:02:53.6]} 2. Nc3 {[%clk 0:02:59.4]}
2... d5 {[%clk 0:02:54.5]} 3. Nf3 {[%clk 0:02:59.8]} 3... dxe4 {[%clk
0:02:54.8]} 4. Nxe4 {[%clk 0:03:00.7]} 4... Nf6 {[%clk 0:02:55.5]} 5. Qe2 {[%clk
0:03:01.3]} 5... Bg4 {[%clk 0:02:54.6]} 6. Nxf6+ {[%clk 0:03:00.6]} 6... gxf6
{[%clk 0:02:55.5]} 7. g3 {[%clk 0:03:01.1]} 7... Nd7 {[%clk 0:02:53.9]} 8. h3
{[%clk 0:03:01.2]} 8... Bxf3 {[%clk 0:02:52.6]} 9. Qxf3 {[%clk 0:03:00.8]} 9...
Ne5 {[%clk 0:02:53.1]} 10. Qe2 {[%clk 0:03:01.1]} 10... Qd5 {[%clk 0:02:52.8]}
11. f4 {[%clk 0:02:39.3]} 11... Qxh1 {[%clk 0:02:23.9]} 12. fxe5 {[%clk
0:02:39.1]} 12... O-O-O {[%clk 0:02:24.3]} 13. d3 {[%clk 0:02:37.3]} 13... Qd5
{[%clk 0:01:43.9]} 14. exf6 {[%clk 0:02:36]} 14... exf6 {[%clk 0:01:42.3]} 15.
Be3 {[%clk 0:02:16.9]} 15... Re8 {[%clk 0:01:36.5]} 16. O-O-O {[%clk 0:02:00.7]}
16... Bh6 {[%clk 0:01:32.8]} 17. Bxh6 {[%clk 0:01:57.9]} 17... Rxe2 {[%clk
0:01:32.6]} 18. Bxe2 {[%clk 0:01:58.8]} 18... Qxa2 {[%clk 0:01:25.9]} 19. Bg4+
{[%clk 0:01:58.7]} 19... Kb8 {[%clk 0:01:23.9]} 20. Bf4+ {[%clk 0:01:45.7]}
20... Ka8 {[%clk 0:01:23.9]} 21. Re1 {[%clk 0:01:41.9]} 21... Qa1+ {[%clk
0:01:22.9]} 22. Kd2 {[%clk 0:01:41.7]} 22... Qxb2 {[%clk 0:01:23.8]} 23. Bd6
{[%clk 0:01:35.2]} 23... a6 {[%clk 0:01:13.4]} 24. Re7 {[%clk 0:01:34.9]} 24...
f5 {[%clk 0:01:09.2]} 25. Bh5 {[%clk 0:01:12.1]} 25... Qf6 {[%clk 0:01:07.6]}
26. Re3 {[%clk 0:00:52.5]} 26... Qxd6 {[%clk 0:01:06.2]} 27. Rf3 {[%clk
0:00:51.6]} 27... Qh6+ {[%clk 0:01:04.5]} 28. Rf4 {[%clk 0:00:50.3]} 28... Qxh5
{[%clk 0:01:04.5]} 29. g4 {[%clk 0:00:50.5]} 29... Qxh3 {[%clk 0:01:04.1]} 30.
Rxf5 {[%clk 0:00:49.8]} 30... Qxg4 {[%clk 0:01:03.8]} 31. Rxf7 {[%clk 0:00:50]}
31... Qg5+ {[%clk 0:01:03.7]} 32. Kc3 {[%clk 0:00:48.1]} 32... h6 {[%clk
0:01:03.6]} 33. Rd7 {[%clk 0:00:43.1]} 33... Qg8 {[%clk 0:01:02.4]} 34. Kd2
{[%clk 0:00:41.6]} 34... Qb8 {[%clk 0:01:02.1]} 35. Rd4 {[%clk 0:00:40.3]} 35...
Qa7 {[%clk 0:01:01.4]} 36. Re4 {[%clk 0:00:40.3]} 36... Qb6 {[%clk 0:01:01]} 37.
Re2 {[%clk 0:00:40.3]} 37... Ka7 {[%clk 0:01:00.8]} 38. Kc3 {[%clk 0:00:39.9]}
38... Ra8 {[%clk 0:01:00.8]} 39. d4 {[%clk 0:00:39.7]} 39... a5 {[%clk
0:01:00.8]} 40. Kd3 {[%clk 0:00:39.9]} 40... Rd8 {[%clk 0:01:00.7]} 41. c3
{[%clk 0:00:39.8]} 41... Rg8 {[%clk 0:01:00.1]} 42. Ra2 {[%clk 0:00:38.8]} 42...
h5 {[%clk 0:00:59.8]} 43. Rh2 {[%clk 0:00:32.4]} 43... Qb5+ {[%clk 0:00:59.5]}
44. Ke4 {[%clk 0:00:29.3]} 44... Re8+ {[%clk 0:00:58.3]} 45. Kf4 {[%clk
0:00:28]} 45... Rf8+ {[%clk 0:00:58.3]} 46. Kg3 {[%clk 0:00:19.8]} 46... Qc4
{[%clk 0:00:57.1]} 47. Rxh5 {[%clk 0:00:18.2]} 47... Qxc3+ {[%clk 0:00:57.3]}
48. Kh4 {[%clk 0:00:15.9]} 48... Qe1+ {[%clk 0:00:56.4]} 49. Kg5 {[%clk
0:00:14.9]} 49... Qe3+ {[%clk 0:00:52.8]} 50. Kg6 {[%clk 0:00:12.9]} 50... Qe8+
{[%clk 0:00:52.5]} 51. Kg5 {[%clk 0:00:11.3]} 51... Qxh5+ {[%clk 0:00:52.5]} 52.
Kxh5 {[%clk 0:00:11.6]} 52... Rd8 {[%clk 0:00:52.6]} 53. Kg5 {[%clk 0:00:11.6]}
53... a4 {[%clk 0:00:52.3]} 54. d5 {[%clk 0:00:11]} 54... cxd5 {[%clk
0:00:51.3]} 55. Kf5 {[%clk 0:00:10.9]} 55... d4 {[%clk 0:00:51.8]} 56. Ke4
{[%clk 0:00:11.3]} 56... d3 {[%clk 0:00:52.2]} 57. Ke3 {[%clk 0:00:11.7]} 57...
d2 {[%clk 0:00:52.5]} 58. Ke4 {[%clk 0:00:11.2]} 58... d1=Q {[%clk 0:00:53.4]}
59. Ke5 {[%clk 0:00:11.2]} 59... Qd5+ {[%clk 0:00:52.8]} 60. Kf6 {[%clk
0:00:10.7]} 60... Rc8 {[%clk 0:00:53.2]} 61. Ke7 {[%clk 0:00:10]} 61... Rc7+
{[%clk 0:00:52.8]} 62. Kf6 {[%clk 0:00:10]} 62... Rf7+ {[%clk 0:00:52.7]} 63.
Kg6 {[%clk 0:00:09.7]} 63... Qf5+ {[%clk 0:00:52.4]} 64. Kh6 {[%clk 0:00:10.2]}
64... Rf6+ {[%clk 0:00:52.7]} 65. Kg7 {[%clk 0:00:10.1]} 65... Qg5+ {[%clk
0:00:52.7]} 66. Kh7 {[%clk 0:00:10.2]} 66... Ra6 {[%clk 0:00:53]} 67. Kh8 {[%clk
0:00:10]} 67... Rh6# {[%clk 0:00:53.1]} 0-1

[Event "*** Titled Tuesday Blitz"]
[Site "Chess.com"]
[Date "2021.03.09"]
[Round "1"]
[White "Sagar_Raina"]
[Black "Anna_ChessMate"]
[Result "1-0"]
[WhiteElo "2266"]
[BlackElo "2540"]
[TimeControl "180+1"]
[EndTime "10:07:37 PST"]
[Termination "Sagar_Raina won by resignation"]

1. Nf3 {[%clk 0:02:52.7]} 1... d5 {[%clk 0:02:46.4]} 2. d4 {[%clk 0:02:51.1]}
2... Nf6 {[%clk 0:02:04.7]} 3. c4 {[%clk 0:02:49.7]} 3... c6 {[%clk 0:02:02.5]}
4. cxd5 {[%clk 0:02:42.8]} 4... cxd5 {[%clk 0:02:00.6]} 5. Bf4 {[%clk
0:02:42.6]} 5... Nc6 {[%clk 0:02:00.9]} 6. Nc3 {[%clk 0:02:42.4]} 6... Bf5
{[%clk 0:02:01.5]} 7. e3 {[%clk 0:02:41.8]} 7... e6 {[%clk 0:02:00.7]} 8. Bd3
{[%clk 0:02:41]} 8... Bxd3 {[%clk 0:01:58.2]} 9. Qxd3 {[%clk 0:02:41.9]} 9...
Bb4 {[%clk 0:01:58.9]} 10. O-O {[%clk 0:02:39.7]} 10... O-O {[%clk 0:01:59.4]}
11. Rac1 {[%clk 0:02:37.6]} 11... Rc8 {[%clk 0:01:58.9]} 12. a3 {[%clk
0:02:36.3]} 12... Bxc3 {[%clk 0:01:58.8]} 13. Rxc3 {[%clk 0:02:34.7]} 13... Ne4
{[%clk 0:01:59.3]} 14. Rc2 {[%clk 0:02:34.1]} 14... Qb6 {[%clk 0:00:57.1]} 15.
Rfc1 {[%clk 0:02:29.9]} 15... h6 {[%clk 0:00:54.9]} 16. b4 {[%clk 0:02:23.7]}
16... Ne7 {[%clk 0:00:48.6]} 17. Bc7 {[%clk 0:02:15.5]} 17... Qa6 {[%clk
0:00:43]} 18. Qxa6 {[%clk 0:02:02.6]} 18... bxa6 {[%clk 0:00:43.9]} 19. Ne5
{[%clk 0:02:00.1]} 19... Rfe8 {[%clk 0:00:35.5]} 20. f3 {[%clk 0:01:55.4]} 20...
Nf6 {[%clk 0:00:33]} 21. Kf2 {[%clk 0:01:27.2]} 21... g5 {[%clk 0:00:28.5]} 22.
g4 {[%clk 0:01:25.7]} 22... Kg7 {[%clk 0:00:27.2]} 23. Nd3 {[%clk 0:01:21.4]}
23... h5 {[%clk 0:00:26.1]} 24. h3 {[%clk 0:01:12.7]} 24... hxg4 {[%clk
0:00:23.3]} 25. hxg4 {[%clk 0:01:11.9]} 25... Nd7 {[%clk 0:00:23.6]} 26. Bd6
{[%clk 0:00:46.5]} 26... Rxc2+ {[%clk 0:00:20.1]} 27. Rxc2 {[%clk 0:00:46.4]}
27... Nb6 {[%clk 0:00:20.7]} 28. Rc7 {[%clk 0:00:42.1]} 28... Nec8 {[%clk
0:00:21.1]} 29. Be5+ {[%clk 0:00:38.5]} 29... Kg6 {[%clk 0:00:21.5]} 30. Nc5
{[%clk 0:00:36]} 30... Nc4 {[%clk 0:00:20.6]} 31. a4 {[%clk 0:00:29.9]} 31... f6
{[%clk 0:00:20.3]} 32. Bg3 {[%clk 0:00:28.9]} 32... e5 {[%clk 0:00:20.3]} 33.
dxe5 {[%clk 0:00:26.2]} 33... fxe5 {[%clk 0:00:18.2]} 34. Nxa6 {[%clk
0:00:24.8]} 34... Nb2 {[%clk 0:00:17.4]} 35. a5 {[%clk 0:00:24]} 35... d4 {[%clk
0:00:17.8]} 36. Nc5 {[%clk 0:00:17]} 36... d3 {[%clk 0:00:15.3]} 37. Rd7 {[%clk
0:00:17]} 37... Re7 {[%clk 0:00:14.4]} 38. Rd8 {[%clk 0:00:16.6]} 38... Rc7
{[%clk 0:00:12.8]} 39. Bxe5 {[%clk 0:00:14.3]} 39... Rxc5 {[%clk 0:00:11.4]} 40.
bxc5 {[%clk 0:00:14]} 40... Nd1+ {[%clk 0:00:12.3]} 41. Ke1 {[%clk 0:00:13.7]}
41... Nxe3 {[%clk 0:00:12.3]} 42. Rxc8 {[%clk 0:00:13.1]} 42... Nc2+ {[%clk
0:00:12.7]} 43. Kd2 {[%clk 0:00:13.1]} 43... Nb4 {[%clk 0:00:13.1]} 44. Bc3
{[%clk 0:00:12.2]} 1-0

[Event "*** Titled Tuesday Blitz"]
[Site "Chess.com"]
[Date "2021.03.09"]
[Round "1"]
[White "GM_Crest"]
[Black "drragnar1"]
[Result "1-0"]
[WhiteElo "2792"]
[BlackElo "2418"]
[TimeControl "180+1"]
[EndTime "10:07:39 PST"]
[Termination "GM_Crest won by resignation"]

1. d4 {[%clk 0:02:55.6]} 1... Nf6 {[%clk 0:02:55]} 2. c4 {[%clk 0:02:54.7]} 2...
c5 {[%clk 0:02:51.8]} 3. d5 {[%clk 0:02:54.1]} 3... e5 {[%clk 0:02:50.2]} 4. Nc3
{[%clk 0:02:53.6]} 4... d6 {[%clk 0:02:49.8]} 5. e4 {[%clk 0:02:53.7]} 5... Be7
{[%clk 0:02:50.1]} 6. Bd3 {[%clk 0:02:48.7]} 6... O-O {[%clk 0:02:49.4]} 7. h3
{[%clk 0:02:47.1]} 7... Ne8 {[%clk 0:02:49.1]} 8. Nf3 {[%clk 0:02:46.6]} 8...
Nd7 {[%clk 0:02:46.2]} 9. Be3 {[%clk 0:02:44.1]} 9... g6 {[%clk 0:02:46]} 10. g4
{[%clk 0:02:43.4]} 10... Ng7 {[%clk 0:02:46]} 11. Qc2 {[%clk 0:02:41.6]} 11...
Kh8 {[%clk 0:02:45.1]} 12. O-O-O {[%clk 0:02:36.7]} 12... a6 {[%clk 0:02:45.4]}
13. a4 {[%clk 0:02:36.2]} 13... Nf6 {[%clk 0:02:42.4]} 14. Rdg1 {[%clk 0:02:30]}
14... Bd7 {[%clk 0:02:41.3]} 15. Nd2 {[%clk 0:02:25.2]} 15... b5 {[%clk
0:02:39.6]} 16. cxb5 {[%clk 0:02:24.5]} 16... axb5 {[%clk 0:02:39.5]} 17. Bxb5
{[%clk 0:02:24.6]} 17... Bxb5 {[%clk 0:02:38.9]} 18. Nxb5 {[%clk 0:02:24.7]}
18... Qa5 {[%clk 0:02:33.4]} 19. b3 {[%clk 0:02:24.4]} 19... Rfb8 {[%clk
0:02:27]} 20. Nc4 {[%clk 0:02:24.3]} 20... Qd8 {[%clk 0:02:16.8]} 21. f3 {[%clk
0:02:23.2]} 21... Nd7 {[%clk 0:02:10.8]} 22. Nbxd6 {[%clk 0:02:19.7]} 22... Kg8
{[%clk 0:02:00.4]} 23. Nb5 {[%clk 0:02:09.5]} 23... Bg5 {[%clk 0:01:55.9]} 24.
Bxg5 {[%clk 0:02:07.3]} 24... Qxg5+ {[%clk 0:01:56.8]} 25. Qd2 {[%clk
0:02:07.6]} 25... Qd8 {[%clk 0:01:50.7]} 26. Kc2 {[%clk 0:02:05.3]} 26... Nb6
{[%clk 0:01:50]} 27. Qd3 {[%clk 0:02:04]} 27... Nxc4 {[%clk 0:01:45.7]} 28. Qxc4
{[%clk 0:02:03.6]} 28... Ne8 {[%clk 0:01:45.6]} 29. Ra1 {[%clk 0:01:28.3]} 29...
Nd6 {[%clk 0:01:44.5]} 30. Qd3 {[%clk 0:01:28.6]} 30... c4 {[%clk 0:01:38.9]}
31. bxc4 {[%clk 0:01:27.6]} 31... Nxc4 {[%clk 0:01:33.3]} 32. Rhb1 {[%clk
0:01:15.5]} 32... Qa5 {[%clk 0:01:21.6]} 33. Kd1 {[%clk 0:01:13.2]} 33... Rc8
{[%clk 0:00:59.5]} 34. d6 {[%clk 0:01:07.1]} 34... Qb6 {[%clk 0:00:59.5]} 35.
Ke2 {[%clk 0:01:05.8]} 35... Rc6 {[%clk 0:00:35.8]} 36. Rc1 {[%clk 0:01:03.7]}
36... Nb2 {[%clk 0:00:29.4]} 37. Qe3 {[%clk 0:00:56.6]} 37... Qa6 {[%clk
0:00:21]} 38. Rxc6 {[%clk 0:00:49]} 38... Qxc6 {[%clk 0:00:21.9]} 39. Qc3 {[%clk
0:00:30.6]} 39... Nc4 {[%clk 0:00:16]} 40. Qb4 {[%clk 0:00:30.9]} 40... Nb6
{[%clk 0:00:12.8]} 41. Ra2 {[%clk 0:00:31.1]} 41... Qc1 {[%clk 0:00:12.5]} 42.
Rd2 {[%clk 0:00:30.5]} 42... Qg1 {[%clk 0:00:12]} 43. d7 {[%clk 0:00:30.1]}
43... Rd8 {[%clk 0:00:11.5]} 44. Qe7 {[%clk 0:00:29.3]} 44... Qg2+ {[%clk
0:00:11.2]} 45. Ke1 {[%clk 0:00:29.2]} 45... Qg1+ {[%clk 0:00:11.4]} 46. Ke2
{[%clk 0:00:29.7]} 46... Qg2+ {[%clk 0:00:11.8]} 47. Kd1 {[%clk 0:00:30]} 47...
Qf1+ {[%clk 0:00:12.1]} 48. Kc2 {[%clk 0:00:29.5]} 48... Qc4+ {[%clk 0:00:12.7]}
49. Nc3 {[%clk 0:00:29.7]} 49... Qc7 {[%clk 0:00:11.9]} 50. Qd6 {[%clk
0:00:29.4]} 50... Qxd6 {[%clk 0:00:10.3]} 51. Rxd6 {[%clk 0:00:29]} 51... Nc4
{[%clk 0:00:10.6]} 52. Rc6 {[%clk 0:00:27.4]} 52... Kf8 {[%clk 0:00:11]} 53.
Rxc4 {[%clk 0:00:26.9]} 1-0

[Event "*** Titled Tuesday Blitz"]
[Site "Chess.com"]
[Date "2021.03.09"]
[Round "1"]
[White "paulrusan"]
[Black "TST2014"]
[Result "0-1"]
[WhiteElo "2325"]
[BlackElo "2628"]
[TimeControl "180+1"]
[EndTime "10:07:39 PST"]
[Termination "TST2014 won on time"]

1. e4 {[%clk 0:03:00.4]} 1... c5 {[%clk 0:02:58.2]} 2. b4 {[%clk 0:02:59.7]}
2... d6 {[%clk 0:02:54.1]} 3. bxc5 {[%clk 0:02:59.1]} 3... dxc5 {[%clk
0:02:53.2]} 4. Nc3 {[%clk 0:02:59.7]} 4... Nc6 {[%clk 0:02:51.4]} 5. Nf3 {[%clk
0:02:58.7]} 5... g6 {[%clk 0:02:50.6]} 6. Bb5 {[%clk 0:02:58.2]} 6... Bg7 {[%clk
0:02:50.3]} 7. Bxc6+ {[%clk 0:02:52.4]} 7... bxc6 {[%clk 0:02:49.5]} 8. O-O
{[%clk 0:02:52.8]} 8... Nf6 {[%clk 0:02:38.9]} 9. h3 {[%clk 0:02:49]} 9... O-O
{[%clk 0:02:36.5]} 10. Rb1 {[%clk 0:02:48.2]} 10... Ba6 {[%clk 0:02:31.4]} 11.
d3 {[%clk 0:02:43.3]} 11... Nd7 {[%clk 0:02:30.5]} 12. Bd2 {[%clk 0:02:37.7]}
12... e5 {[%clk 0:02:23]} 13. Qc1 {[%clk 0:02:29.3]} 13... c4 {[%clk 0:02:14.2]}
14. Qa3 {[%clk 0:02:07.9]} 14... Qc8 {[%clk 0:02:00.7]} 15. dxc4 {[%clk
0:01:53.6]} 15... Nb6 {[%clk 0:01:51.3]} 16. Rfd1 {[%clk 0:01:17.6]} 16... Nxc4
{[%clk 0:01:38]} 17. Qc5 {[%clk 0:01:17.2]} 17... Re8 {[%clk 0:01:29.7]} 18. Be1
{[%clk 0:00:54.6]} 18... Bf8 {[%clk 0:01:25.9]} 19. Qxf8+ {[%clk 0:00:25.1]}
19... Rxf8 {[%clk 0:01:20.7]} 20. Na4 {[%clk 0:00:25.6]} 20... Rb8 {[%clk
0:01:10]} 21. Nc5 {[%clk 0:00:25.8]} 21... Rxb1 {[%clk 0:01:09.1]} 22. Rxb1
{[%clk 0:00:26]} 22... Rd8 {[%clk 0:00:53.5]} 23. Bc3 {[%clk 0:00:19.8]} 23...
f6 {[%clk 0:00:50.8]} 24. g4 {[%clk 0:00:18.2]} 24... Na3 {[%clk 0:00:43.4]} 25.
Rb2 {[%clk 0:00:13.8]} 25... Be2 {[%clk 0:00:37.4]} 26. Nd2 {[%clk 0:00:12.9]}
26... Nb5 {[%clk 0:00:36.3]} 27. Ba5 {[%clk 0:00:11.4]} 27... Rd4 {[%clk
0:00:24.6]} 28. f3 {[%clk 0:00:10.2]} 28... h5 {[%clk 0:00:20.9]} 29. Kf2 {[%clk
0:00:09.6]} 29... Bc4 {[%clk 0:00:19.2]} 30. Nxc4 {[%clk 0:00:07.7]} 30... Rxc4
{[%clk 0:00:19.2]} 31. Nd3 {[%clk 0:00:07.1]} 31... Qa6 {[%clk 0:00:18.1]} 32.
Bb4 {[%clk 0:00:06.7]} 32... Nd4 {[%clk 0:00:16.1]} 33. a3 {[%clk 0:00:05.4]}
33... Rxc2+ {[%clk 0:00:16.1]} 34. Rxc2 {[%clk 0:00:05]} 34... Nxc2 {[%clk
0:00:17]} 35. Nc5 {[%clk 0:00:05.3]} 35... Qc4 {[%clk 0:00:16.4]} 36. Nd7 {[%clk
0:00:05.3]} 36... Nxb4 {[%clk 0:00:16]} 37. Nxf6+ {[%clk 0:00:04.6]} 37... Kf7
{[%clk 0:00:16.3]} 38. Nd7 {[%clk 0:00:02.6]} 38... Qd4+ {[%clk 0:00:15.8]} 39.
Kg3 {[%clk 0:00:01.9]} 39... Qxd7 {[%clk 0:00:15.8]} 40. gxh5 {[%clk 0:00:02.6]}
40... Nd3 {[%clk 0:00:15.1]} 41. hxg6+ {[%clk 0:00:02.2]} 41... Kxg6 {[%clk
0:00:15.3]} 42. Kh4 {[%clk 0:00:01.6]} 42... Qe7+ {[%clk 0:00:14.9]} 43. Kg3
{[%clk 0:00:01.4]} 43... Qg5+ {[%clk 0:00:15.5]} 44. Kh2 {[%clk 0:00:01.7]}
44... Nf4 {[%clk 0:00:15.5]} 0-1

[Event "*** Titled Tuesday Blitz"]
[Site "Chess.com"]
[Date "2021.03.09"]
[Round "1"]
[White "Pantata007"]
[Black "mbojan"]
[Result "0-1"]
[WhiteElo "2321"]
[BlackElo "2623"]
[TimeControl "180+1"]
[EndTime "10:07:41 PST"]
[Termination "mbojan won on time"]

1. d4 {[%clk 0:03:00.9]} 1... g6 {[%clk 0:02:58]} 2. e4 {[%clk 0:03:00.4]} 2...
Bg7 {[%clk 0:02:58.3]} 3. Nc3 {[%clk 0:03:00.8]} 3... d6 {[%clk 0:02:58.4]} 4.
Be3 {[%clk 0:03:01.3]} 4... a6 {[%clk 0:02:57.7]} 5. Qd2 {[%clk 0:02:59.9]} 5...
b5 {[%clk 0:02:57.2]} 6. f3 {[%clk 0:02:53.2]} 6... h5 {[%clk 0:02:44.2]} 7.
O-O-O {[%clk 0:02:43.1]} 7... c6 {[%clk 0:02:38.1]} 8. Bd3 {[%clk 0:02:37.2]}
8... Qc7 {[%clk 0:02:34.3]} 9. Kb1 {[%clk 0:02:13.3]} 9... Nf6 {[%clk
0:02:31.7]} 10. Nge2 {[%clk 0:02:05.4]} 10... Bb7 {[%clk 0:02:16.1]} 11. h3
{[%clk 0:01:52.4]} 11... Nbd7 {[%clk 0:01:56.1]} 12. g4 {[%clk 0:01:51]} 12...
hxg4 {[%clk 0:01:55.4]} 13. hxg4 {[%clk 0:01:49.8]} 13... O-O-O {[%clk
0:01:51.6]} 14. Ng3 {[%clk 0:01:49]} 14... Nb6 {[%clk 0:01:44.2]} 15. g5 {[%clk
0:01:45.5]} 15... Nfd7 {[%clk 0:01:41]} 16. f4 {[%clk 0:01:42.5]} 16... c5
{[%clk 0:01:38.3]} 17. dxc5 {[%clk 0:01:30.7]} 17... Nxc5 {[%clk 0:01:36.4]} 18.
Rxh8 {[%clk 0:01:23.2]} 18... Rxh8 {[%clk 0:01:35.4]} 19. a3 {[%clk 0:01:03.2]}
19... Nxd3 {[%clk 0:01:29.6]} 20. cxd3 {[%clk 0:00:56.3]} 20... Kb8 {[%clk
0:01:18.1]} 21. Rc1 {[%clk 0:00:55.5]} 21... Qd8 {[%clk 0:01:10.8]} 22. Qf2
{[%clk 0:00:49.9]} 22... Bxc3 {[%clk 0:00:53.1]} 23. Bxb6 {[%clk 0:00:36.1]}
23... Qd7 {[%clk 0:00:37.8]} 24. Rxc3 {[%clk 0:00:34.4]} 24... Rc8 {[%clk
0:00:38.5]} 25. Rxc8+ {[%clk 0:00:20.1]} 25... Qxc8 {[%clk 0:00:35.1]} 26. Qc2
{[%clk 0:00:18.4]} 26... Qg4 {[%clk 0:00:34]} 27. Ne2 {[%clk 0:00:12.2]} 27...
Qh3 {[%clk 0:00:26.1]} 28. Qd2 {[%clk 0:00:10.9]} 28... Qf1+ {[%clk 0:00:19]}
29. Ka2 {[%clk 0:00:10.6]} 29... Qh3 {[%clk 0:00:17.8]} 30. Qe3 {[%clk 0:00:09]}
30... Qe6+ {[%clk 0:00:15.2]} 31. Kb1 {[%clk 0:00:07.9]} 31... Qb3 {[%clk
0:00:15.4]} 32. Nc3 {[%clk 0:00:07.5]} 32... Bc6 {[%clk 0:00:12.3]} 33. d4
{[%clk 0:00:04.7]} 33... Qc4 {[%clk 0:00:09.3]} 34. d5 {[%clk 0:00:02.1]} 34...
Qf1+ {[%clk 0:00:08.6]} 35. Kc2 {[%clk 0:00:02.5]} 35... Bd7 {[%clk 0:00:09.1]}
36. Kb3 {[%clk 0:00:02.4]} 36... Qc4+ {[%clk 0:00:08.4]} 37. Kc2 {[%clk
0:00:02.2]} 37... Bg4 {[%clk 0:00:04.9]} 38. Ba5 {[%clk 0:00:01.6]} 38... Kc8
{[%clk 0:00:03.8]} 39. Qb6 {[%clk 0:00:01.2]} 39... Bf3 {[%clk 0:00:03.1]} 0-1

[Event "*** Titled Tuesday Blitz"]
[Site "Chess.com"]
[Date "2021.03.09"]
[Round "1"]
[White "barbara25"]
[Black "Nuvas"]
[Result "0-1"]
[WhiteElo "2253"]
[BlackElo "2560"]
[TimeControl "180+1"]
[EndTime "10:07:43 PST"]
[Termination "Nuvas won by resignation"]

1. e4 {[%clk 0:02:40]} 1... c5 {[%clk 0:03:00]} 2. Nf3 {[%clk 0:02:39.6]} 2...
d6 {[%clk 0:03:00.6]} 3. d4 {[%clk 0:02:38.9]} 3... cxd4 {[%clk 0:03:00.8]} 4.
Nxd4 {[%clk 0:02:39.8]} 4... Nf6 {[%clk 0:03:01.4]} 5. Nc3 {[%clk 0:02:40]} 5...
a6 {[%clk 0:03:02]} 6. f3 {[%clk 0:02:38.9]} 6... e5 {[%clk 0:03:02]} 7. Nb3
{[%clk 0:02:39.2]} 7... Be6 {[%clk 0:03:02.1]} 8. Be3 {[%clk 0:02:39.2]} 8... h5
{[%clk 0:03:02.6]} 9. Qd2 {[%clk 0:02:39.6]} 9... Nbd7 {[%clk 0:03:02.1]} 10.
O-O-O {[%clk 0:02:39.7]} 10... Rc8 {[%clk 0:03:02.8]} 11. Kb1 {[%clk 0:02:40]}
11... Qc7 {[%clk 0:03:02.7]} 12. g3 {[%clk 0:02:39.2]} 12... Be7 {[%clk
0:02:54.2]} 13. Bd3 {[%clk 0:02:37.2]} 13... b5 {[%clk 0:02:53.7]} 14. f4 {[%clk
0:02:37.4]} 14... Nb6 {[%clk 0:02:42.9]} 15. f5 {[%clk 0:02:32.4]} 15... Bd7
{[%clk 0:02:19.3]} 16. Bxb6 {[%clk 0:02:30.4]} 16... Qxb6 {[%clk 0:02:19.2]} 17.
h3 {[%clk 0:02:30.9]} 17... b4 {[%clk 0:02:16.1]} 18. Ne2 {[%clk 0:02:30.6]}
18... Bc6 {[%clk 0:02:11]} 19. Rhe1 {[%clk 0:02:07.2]} 19... Nxe4 {[%clk
0:02:08.9]} 20. Bxe4 {[%clk 0:01:54.8]} 20... Bxe4 {[%clk 0:02:09.8]} 21. Ned4
{[%clk 0:01:54.9]} 21... Bg2 {[%clk 0:02:02.3]} 22. Qxg2 {[%clk 0:01:51.7]}
22... exd4 {[%clk 0:02:02.7]} 23. Nxd4 {[%clk 0:01:49.4]} 23... Kf8 {[%clk
0:01:53]} 24. g4 {[%clk 0:01:39.2]} 24... Bf6 {[%clk 0:01:47.1]} 25. Qe4 {[%clk
0:01:32.9]} 25... hxg4 {[%clk 0:01:43.1]} 26. hxg4 {[%clk 0:01:33.8]} 26... a5
{[%clk 0:00:59.3]} 27. Nf3 {[%clk 0:01:33.2]} 27... Qc6 {[%clk 0:00:53.6]} 28.
Qe2 {[%clk 0:01:25.5]} 28... Rh3 {[%clk 0:00:49.6]} 29. Rd3 {[%clk 0:01:24.3]}
29... Re8 {[%clk 0:00:34.8]} 30. Qxe8+ {[%clk 0:01:07.6]} 30... Qxe8 {[%clk
0:00:34.7]} 31. Rxe8+ {[%clk 0:01:08.2]} 31... Kxe8 {[%clk 0:00:35.6]} 32. c3
{[%clk 0:01:07.7]} 32... bxc3 {[%clk 0:00:30.1]} 33. bxc3 {[%clk 0:01:07.9]}
33... Rg3 {[%clk 0:00:28.8]} 34. Kc2 {[%clk 0:01:00.7]} 34... Ke7 {[%clk
0:00:18.2]} 35. Re3+ {[%clk 0:00:50.6]} 35... Kd8 {[%clk 0:00:18.1]} 36. Rd3
{[%clk 0:00:49.8]} 36... Kc7 {[%clk 0:00:17.8]} 37. Nd4 {[%clk 0:00:40.2]} 37...
Rxg4 {[%clk 0:00:14.6]} 38. Nb5+ {[%clk 0:00:39.2]} 38... Kb6 {[%clk 0:00:15.1]}
39. Nxd6 {[%clk 0:00:38.8]} 39... Rf4 {[%clk 0:00:13.3]} 40. a3 {[%clk
0:00:24.3]} 40... Kc5 {[%clk 0:00:12.9]} 41. Nxf7 {[%clk 0:00:18.8]} 41... Rxf5
{[%clk 0:00:12.8]} 42. Nd8 {[%clk 0:00:18.6]} 42... a4 {[%clk 0:00:09.3]} 43.
Ne6+ {[%clk 0:00:18.5]} 43... Kb6 {[%clk 0:00:09.5]} 44. Nd4 {[%clk 0:00:14.5]}
44... Rc5 {[%clk 0:00:09.7]} 45. Ne2 {[%clk 0:00:11.8]} 45... g5 {[%clk
0:00:09]} 46. Rd6+ {[%clk 0:00:10.7]} 46... Rc6 {[%clk 0:00:08.7]} 47. Rxf6
{[%clk 0:00:10.6]} 47... Rxf6 {[%clk 0:00:08.5]} 0-1